[Event "*** Titled Tuesday Blitz"]
[Site "Chess.com"]
[Date "2020.05.19"]
[Round "8"]
[White "stolencandy13"]
[Black "Grandmaster2B"]
[Result "1/2-1/2"]
[WhiteElo "2553"]
[BlackElo "2417"]
[TimeControl "180+1"]
[EndTime "13:36:30 PDT"]
[Termination "Game drawn by agreement"]

1. e4 {[%clk 0:03:00.8]} 1... c5 {[%clk 0:02:57.9]} 2. Nf3 {[%clk 0:03:00.2]}
2... d6 {[%clk 0:02:53.9]} 3. d4 {[%clk 0:03:00.7]} 3... cxd4 {[%clk 0:02:54.8]}
4. Nxd4 {[%clk 0:03:01.1]} 4... Nf6 {[%clk 0:02:55]} 5. Nc3 {[%clk 0:03:01.6]}
5... a6 {[%clk 0:02:55.4]} 6. h3 {[%clk 0:03:01.9]} 6... e5 {[%clk 0:02:52.7]}
7. Nde2 {[%clk 0:03:01.6]} 7... Be6 {[%clk 0:02:53]} 8. g4 {[%clk 0:03:00]} 8...
d5 {[%clk 0:02:53.7]} 9. exd5 {[%clk 0:02:58]} 9... Nxd5 {[%clk 0:02:54.6]} 10.
Bg2 {[%clk 0:02:58.5]} 10... Nxc3 {[%clk 0:02:55]} 11. Qxd8+ {[%clk 0:02:57.8]}
11... Kxd8 {[%clk 0:02:55.9]} 12. Nxc3 {[%clk 0:02:57.5]} 12... Nc6 {[%clk
0:02:56]} 13. Be3 {[%clk 0:02:54.7]} 13... Kc7 {[%clk 0:02:55.5]} 14. O-O-O
{[%clk 0:02:54.5]} 14... Bb4 {[%clk 0:02:53.6]} 15. Nd5+ {[%clk 0:02:51.1]}
15... Bxd5 {[%clk 0:02:54]} 16. Bxd5 {[%clk 0:02:49.7]} 16... f6 {[%clk
0:02:54.5]} 17. c3 {[%clk 0:02:49]} 17... Bd6 {[%clk 0:02:51.3]} 18. Rd2 {[%clk
0:02:45.7]} 18... Rad8 {[%clk 0:02:50.2]} 19. Rhd1 {[%clk 0:02:41.1]} 19... h5
{[%clk 0:02:38.9]} 20. b4 {[%clk 0:02:08.4]} 20... hxg4 {[%clk 0:02:20.4]} 21.
hxg4 {[%clk 0:02:09.3]} 21... Be7 {[%clk 0:02:11]} 22. a4 {[%clk 0:02:04]} 22...
Rh3 {[%clk 0:01:55.3]} 23. a5 {[%clk 0:02:01.9]} 23... Nd4 {[%clk 0:01:54]} 24.
Bg2 {[%clk 0:01:20.9]} 24... Rxe3 {[%clk 0:01:47.2]} 25. fxe3 {[%clk 0:01:15.9]}
25... Nb3+ {[%clk 0:01:46.7]} 26. Kc2 {[%clk 0:01:16]} 26... Nxd2 {[%clk
0:01:46.5]} 27. Rxd2 {[%clk 0:01:16.2]} 27... Rxd2+ {[%clk 0:01:47.1]} 28. Kxd2
{[%clk 0:01:17.1]} 28... b6 {[%clk 0:01:37.5]} 29. axb6+ {[%clk 0:01:12.8]}
29... Kxb6 {[%clk 0:01:38.4]} 30. Kd3 {[%clk 0:01:03.1]} 30... a5 {[%clk
0:01:37.9]} 31. bxa5+ {[%clk 0:01:03.2]} 31... Kxa5 {[%clk 0:01:38.8]} 32. Kc4
{[%clk 0:01:03.5]} 32... Kb6 {[%clk 0:01:32.5]} 33. Kd5 {[%clk 0:01:01.6]} 33...
Bc5 {[%clk 0:01:24.8]} 34. e4 {[%clk 0:00:58.8]} 34... Be3 {[%clk 0:01:21.4]}
35. Bf1 {[%clk 0:00:54]} 35... Kc7 {[%clk 0:01:20.7]} 36. Ke6 {[%clk 0:00:51.7]}
36... Bd2 {[%clk 0:01:13.6]} 37. c4 {[%clk 0:00:51]} 37... Bh6 {[%clk
0:01:10.5]} 38. Bd3 {[%clk 0:00:49.6]} 38... Kc6 {[%clk 0:01:09]} 39. Bf1 {[%clk
0:00:38.3]} 39... Kc5 {[%clk 0:01:08.5]} 40. Kf5 {[%clk 0:00:37.4]} 40... Kc6
{[%clk 0:01:05.3]} 41. Be2 {[%clk 0:00:36.4]} 41... Kc5 {[%clk 0:01:05.7]} 42.
Bd3 {[%clk 0:00:36.4]} 42... Kc6 {[%clk 0:01:05.9]} 43. Bc2 {[%clk 0:00:36.3]}
43... Kc5 {[%clk 0:01:06.4]} 44. Bb3 {[%clk 0:00:36.3]} 44... Kb4 {[%clk
0:01:03.8]} 45. Ba2 {[%clk 0:00:35.3]} 45... Kc5 {[%clk 0:01:02.2]} 46. Ke6
{[%clk 0:00:33.4]} 46... Kc6 {[%clk 0:01:00.9]} 47. Bb3 {[%clk 0:00:32.4]} 47...
Kc5 {[%clk 0:01:00.3]} 48. Ba2 {[%clk 0:00:28.5]} 48... Kc6 {[%clk 0:01:00.3]}
49. Ke7 {[%clk 0:00:28.1]} 49... Kc5 {[%clk 0:00:59.8]} 50. Kd7 {[%clk
0:00:27.6]} 50... Be3 {[%clk 0:00:57.6]} 51. Ke6 {[%clk 0:00:26.3]} 51... Bh6
{[%clk 0:00:58]} 52. Kf5 {[%clk 0:00:26.1]} 52... Kc6 {[%clk 0:00:58.2]} 53. Kg6
{[%clk 0:00:26.1]} 53... Kc5 {[%clk 0:00:58.2]} 54. g5 {[%clk 0:00:22.8]} 54...
Bxg5 {[%clk 0:00:58.1]} 55. Kxg7 {[%clk 0:00:23]} 55... Kd4 {[%clk 0:00:55.9]}
56. c5 {[%clk 0:00:21.2]} 56... Kxc5 {[%clk 0:00:43.3]} 57. Kg6 {[%clk 0:00:21]}
57... Kd4 {[%clk 0:00:43]} 58. Kf5 {[%clk 0:00:21.3]} 1/2-1/2

[Event "*** Titled Tuesday Blitz"]
[Site "Chess.com"]
[Date "2020.05.19"]
[Round "8"]
[White "IMinTheWings"]
[Black "parmupill123"]
[Result "0-1"]
[WhiteElo "2233"]
[BlackElo "2410"]
[TimeControl "180+1"]
[EndTime "13:36:32 PDT"]
[Termination "parmupill123 won by resignation"]

1. Nf3 {[%clk 0:02:59.5]} 1... e6 {[%clk 0:03:00.9]} 2. g3 {[%clk 0:02:59.6]}
2... b6 {[%clk 0:02:58.6]} 3. Bg2 {[%clk 0:03:00]} 3... Bb7 {[%clk 0:02:59.5]}
4. O-O {[%clk 0:03:00.6]} 4... Nf6 {[%clk 0:02:57.5]} 5. c4 {[%clk 0:03:00.8]}
5... Be7 {[%clk 0:02:57.8]} 6. Nc3 {[%clk 0:03:01.2]} 6... O-O {[%clk
0:02:58.3]} 7. Re1 {[%clk 0:03:01.5]} 7... d5 {[%clk 0:02:57.5]} 8. cxd5 {[%clk
0:02:58.4]} 8... Nxd5 {[%clk 0:02:58.4]} 9. d4 {[%clk 0:02:59]} 9... c5 {[%clk
0:02:54.3]} 10. e4 {[%clk 0:02:42.6]} 10... Nxc3 {[%clk 0:02:50]} 11. bxc3
{[%clk 0:02:42.3]} 11... cxd4 {[%clk 0:02:50.9]} 12. cxd4 {[%clk 0:02:42.3]}
12... Nc6 {[%clk 0:02:51.5]} 13. Bb2 {[%clk 0:02:41.9]} 13... Rc8 {[%clk
0:02:48.8]} 14. Rc1 {[%clk 0:02:34.6]} 14... Bf6 {[%clk 0:02:38.4]} 15. e5
{[%clk 0:02:33.2]} 15... Be7 {[%clk 0:02:37.4]} 16. Qd3 {[%clk 0:02:15.8]} 16...
Nb4 {[%clk 0:02:23.1]} 17. Qb1 {[%clk 0:02:13.6]} 17... Bd5 {[%clk 0:02:09.5]}
18. a3 {[%clk 0:01:59.3]} 18... Nc6 {[%clk 0:02:08.9]} 19. Qd3 {[%clk
0:01:48.8]} 19... Qd7 {[%clk 0:02:02.6]} 20. Red1 {[%clk 0:01:39.5]} 20... Qb7
{[%clk 0:01:54.2]} 21. Ne1 {[%clk 0:01:33.1]} 21... Na5 {[%clk 0:01:52.2]} 22.
Bxd5 {[%clk 0:01:29]} 22... Qxd5 {[%clk 0:01:53.1]} 23. Qf3 {[%clk 0:01:17.4]}
23... Qxf3 {[%clk 0:01:37]} 24. Nxf3 {[%clk 0:01:18.3]} 24... Nc4 {[%clk
0:01:36.8]} 25. Rc2 {[%clk 0:01:13.4]} 25... Nxe5 {[%clk 0:01:29]} 26. Rxc8
{[%clk 0:00:56.1]} 26... Nxf3+ {[%clk 0:01:27.8]} 27. Kg2 {[%clk 0:00:56.7]}
27... Nh4+ {[%clk 0:01:27]} 28. gxh4 {[%clk 0:00:54.8]} 28... Rxc8 {[%clk
0:01:27.9]} 29. d5 {[%clk 0:00:53.6]} 29... exd5 {[%clk 0:01:21.2]} 30. Rxd5
{[%clk 0:00:52.1]} 30... Bxh4 {[%clk 0:01:19.6]} 31. Rd7 {[%clk 0:00:51.8]}
31... Ra8 {[%clk 0:01:19.2]} 32. Bd4 {[%clk 0:00:46.8]} 32... h6 {[%clk
0:01:16.4]} 33. Kh3 {[%clk 0:00:43.8]} 33... Bf6 {[%clk 0:01:09]} 34. Bxf6
{[%clk 0:00:42.3]} 34... gxf6 {[%clk 0:01:09.9]} 35. Kg4 {[%clk 0:00:42.1]}
35... Kg7 {[%clk 0:01:09.6]} 36. Kf5 {[%clk 0:00:40.6]} 36... a5 {[%clk
0:01:05.6]} 37. Rd6 {[%clk 0:00:40.3]} 37... Rb8 {[%clk 0:01:05.3]} 38. Rxf6
{[%clk 0:00:40.1]} 38... b5 {[%clk 0:01:05.7]} 39. Ra6 {[%clk 0:00:39.7]} 39...
b4 {[%clk 0:01:05]} 40. axb4 {[%clk 0:00:34.7]} 40... axb4 {[%clk 0:01:05.9]}
41. Ra2 {[%clk 0:00:33.9]} 41... b3 {[%clk 0:01:06.4]} 42. Rb2 {[%clk
0:00:34.4]} 42... Rb5+ {[%clk 0:01:04.7]} 43. Kf4 {[%clk 0:00:34.6]} 43... Kf6
{[%clk 0:01:04.1]} 44. Kg3 {[%clk 0:00:34.7]} 44... Ke5 {[%clk 0:01:01.4]} 45.
h4 {[%clk 0:00:21]} 45... Kd4 {[%clk 0:00:58.7]} 46. Kg4 {[%clk 0:00:20.4]}
46... Kc3 {[%clk 0:00:56.6]} 47. Rb1 {[%clk 0:00:20.8]} 47... b2 {[%clk
0:00:56.2]} 48. f4 {[%clk 0:00:19.2]} 48... h5+ {[%clk 0:00:55.4]} 49. Kf3
{[%clk 0:00:18.7]} 49... Kc2 {[%clk 0:00:55.4]} 50. Rxb2+ {[%clk 0:00:15.1]}
50... Kxb2 {[%clk 0:00:56.3]} 51. Ke4 {[%clk 0:00:15.1]} 51... f5+ {[%clk
0:00:55.1]} 52. Kd4 {[%clk 0:00:14.7]} 52... Kb3 {[%clk 0:00:55]} 53. Kd3 {[%clk
0:00:14]} 53... Rd5+ {[%clk 0:00:54.1]} 54. Ke3 {[%clk 0:00:13.8]} 54... Kc4
{[%clk 0:00:54.6]} 55. Kf3 {[%clk 0:00:14.3]} 55... Rd4 {[%clk 0:00:55.5]} 56.
Kg3 {[%clk 0:00:14.9]} 56... Rd3+ {[%clk 0:00:55.1]} 57. Kg2 {[%clk 0:00:15.3]}
57... Kd4 {[%clk 0:00:56]} 58. Kh2 {[%clk 0:00:16]} 58... Ke4 {[%clk 0:00:56.9]}
59. Kg2 {[%clk 0:00:16.9]} 59... Kxf4 {[%clk 0:00:57.6]} 60. Kg1 {[%clk
0:00:17.8]} 60... Kf3 {[%clk 0:00:57.3]} 0-1

[Event "*** Titled Tuesday Blitz"]
[Site "Chess.com"]
[Date "2020.05.19"]
[Round "8"]
[White "Zhuu96"]
[Black "SketchyMoves"]
[Result "0-1"]
[WhiteElo "2838"]
[BlackElo "2651"]
[TimeControl "180+1"]
[EndTime "13:36:35 PDT"]
[Termination "SketchyMoves won by resignation"]

1. e4 {[%clk 0:02:57.2]} 1... e6 {[%clk 0:02:57.6]} 2. d4 {[%clk 0:02:56.9]}
2... d5 {[%clk 0:02:58.1]} 3. Nc3 {[%clk 0:02:55.7]} 3... Nc6 {[%clk 0:02:58.3]}
4. Bb5 {[%clk 0:02:54.6]} 4... Nf6 {[%clk 0:02:57.1]} 5. exd5 {[%clk 0:02:52.7]}
5... exd5 {[%clk 0:02:56.4]} 6. Nf3 {[%clk 0:02:52.9]} 6... Bg4 {[%clk
0:02:48.9]} 7. O-O {[%clk 0:02:47.9]} 7... Be7 {[%clk 0:02:48.8]} 8. h3 {[%clk
0:02:47.9]} 8... Bxf3 {[%clk 0:02:44.4]} 9. Qxf3 {[%clk 0:02:47.6]} 9... O-O
{[%clk 0:02:45.3]} 10. Rd1 {[%clk 0:02:46.9]} 10... a6 {[%clk 0:02:43.4]} 11.
Bxc6 {[%clk 0:02:39.6]} 11... bxc6 {[%clk 0:02:44.3]} 12. b3 {[%clk 0:02:30.9]}
12... Re8 {[%clk 0:02:41.6]} 13. Na4 {[%clk 0:02:30.9]} 13... Ne4 {[%clk
0:02:38.2]} 14. c4 {[%clk 0:02:30.4]} 14... Bd6 {[%clk 0:02:33.3]} 15. Be3
{[%clk 0:02:25.6]} 15... Qd7 {[%clk 0:02:23.3]} 16. Rac1 {[%clk 0:02:24.1]}
16... h6 {[%clk 0:02:08]} 17. cxd5 {[%clk 0:02:17.4]} 17... cxd5 {[%clk
0:02:08.9]} 18. Nc3 {[%clk 0:02:16.3]} 18... Nxc3 {[%clk 0:01:59.1]} 19. Rxc3
{[%clk 0:02:13.9]} 19... Re4 {[%clk 0:01:57.7]} 20. Rdc1 {[%clk 0:02:05.7]}
20... Rae8 {[%clk 0:01:56.9]} 21. Rc6 {[%clk 0:02:05.6]} 21... a5 {[%clk
0:01:44.6]} 22. Kh1 {[%clk 0:01:57.8]} 22... Qe6 {[%clk 0:01:40.6]} 23. Ra6
{[%clk 0:01:53.7]} 23... g5 {[%clk 0:01:21]} 24. Rxa5 {[%clk 0:01:45.4]} 24...
Rxd4 {[%clk 0:01:18.2]} 25. Ra6 {[%clk 0:01:34.2]} 25... Re4 {[%clk 0:01:16.6]}
26. Rxc7 {[%clk 0:01:20.4]} 26... Bxc7 {[%clk 0:00:52.4]} 27. Rxe6 {[%clk
0:01:19.9]} 27... R8xe6 {[%clk 0:00:53]} 28. g3 {[%clk 0:01:19.6]} 28... Bb6
{[%clk 0:00:47.2]} 29. Bxb6 {[%clk 0:01:17.7]} 29... Rxb6 {[%clk 0:00:48.1]} 30.
Qc3 {[%clk 0:01:10.1]} 30... Rd6 {[%clk 0:00:44.3]} 31. Qc7 {[%clk 0:01:08.2]}
31... Ree6 {[%clk 0:00:40.6]} 32. Qc3 {[%clk 0:00:59.8]} 32... d4 {[%clk
0:00:40.4]} 33. Qd3 {[%clk 0:01:00]} 33... Re1+ {[%clk 0:00:35.4]} 34. Kg2
{[%clk 0:00:57.9]} 34... Rc1 {[%clk 0:00:35.9]} 35. b4 {[%clk 0:00:52.6]} 35...
Rc3 {[%clk 0:00:34.3]} 36. Qe4 {[%clk 0:00:52.9]} 36... Rd8 {[%clk 0:00:20.8]}
37. h4 {[%clk 0:00:48.5]} 37... d3 {[%clk 0:00:19.1]} 38. Qe3 {[%clk 0:00:41.2]}
38... d2 {[%clk 0:00:17]} 39. Qxc3 {[%clk 0:00:16.8]} 39... d1=Q {[%clk
0:00:17.1]} 40. hxg5 {[%clk 0:00:17]} 40... Qd5+ {[%clk 0:00:16.6]} 0-1

[Event "*** Titled Tuesday Blitz"]
[Site "Chess.com"]
[Date "2020.05.19"]
[Round "8"]
[White "MYMChessAcademy"]
[Black "Skatchkov_V"]
[Result "0-1"]
[WhiteElo "2396"]
[BlackElo "2557"]
[TimeControl "180+1"]
[EndTime "13:36:35 PDT"]
[Termination "Skatchkov_V won on time"]

1. e4 {[%clk 0:03:00.9]} 1... e5 {[%clk 0:02:59.7]} 2. Nf3 {[%clk 0:03:00.9]}
2... Nf6 {[%clk 0:02:59.8]} 3. Bc4 {[%clk 0:03:00.6]} 3... Nxe4 {[%clk
0:02:41.2]} 4. Nc3 {[%clk 0:03:00.2]} 4... Nd6 {[%clk 0:02:37.2]} 5. Bb3 {[%clk
0:02:59.3]} 5... Nc6 {[%clk 0:02:36.7]} 6. O-O {[%clk 0:02:58.5]} 6... Be7
{[%clk 0:02:37.1]} 7. Re1 {[%clk 0:02:58.2]} 7... O-O {[%clk 0:02:36.4]} 8. Nxe5
{[%clk 0:02:58.4]} 8... Nxe5 {[%clk 0:02:36.6]} 9. Rxe5 {[%clk 0:02:59.3]} 9...
Bf6 {[%clk 0:02:31.1]} 10. Re1 {[%clk 0:02:59.7]} 10... c6 {[%clk 0:02:31.8]}
11. d4 {[%clk 0:02:59.2]} 11... Re8 {[%clk 0:02:22.2]} 12. Rxe8+ {[%clk
0:02:54.5]} 12... Nxe8 {[%clk 0:02:22.3]} 13. d5 {[%clk 0:02:51.6]} 13... d6
{[%clk 0:02:14.8]} 14. Bf4 {[%clk 0:02:44.5]} 14... Bf5 {[%clk 0:02:13.1]} 15.
Qf3 {[%clk 0:02:41.8]} 15... c5 {[%clk 0:02:02.5]} 16. Re1 {[%clk 0:02:36]}
16... g6 {[%clk 0:01:42.3]} 17. g4 {[%clk 0:02:08.2]} 17... Bd7 {[%clk
0:01:34.7]} 18. Ne4 {[%clk 0:02:08.3]} 18... Bxb2 {[%clk 0:01:26.5]} 19. Nxd6
{[%clk 0:02:04.9]} 19... Nxd6 {[%clk 0:01:26.1]} 20. Bxd6 {[%clk 0:02:05.8]}
20... Qg5 {[%clk 0:01:03.4]} 21. Re7 {[%clk 0:01:45.8]} 21... Qxg4+ {[%clk
0:00:39.2]} 22. Qxg4 {[%clk 0:01:45.8]} 22... Bxg4 {[%clk 0:00:39.8]} 23. Rxb7
{[%clk 0:01:46.3]} 23... Rc8 {[%clk 0:00:38.5]} 24. Bc4 {[%clk 0:01:28.8]} 24...
Bf3 {[%clk 0:00:38.5]} 25. Rxa7 {[%clk 0:01:21.7]} 25... Bf6 {[%clk 0:00:37.9]}
26. Be7 {[%clk 0:00:55.9]} 26... Bxe7 {[%clk 0:00:18.1]} 27. Rxe7 {[%clk
0:00:56.8]} 27... Rd8 {[%clk 0:00:18.9]} 28. Rc7 {[%clk 0:00:45.9]} 28... Bxd5
{[%clk 0:00:18.2]} 29. Rxc5 {[%clk 0:00:45.5]} 29... Be4 {[%clk 0:00:18.8]} 30.
h3 {[%clk 0:00:39]} 30... h5 {[%clk 0:00:13.9]} 31. Rc7 {[%clk 0:00:38.2]} 31...
Rd1+ {[%clk 0:00:13.6]} 32. Kh2 {[%clk 0:00:37.5]} 32... h4 {[%clk 0:00:14]} 33.
f3 {[%clk 0:00:01.2]} 33... Bxf3 {[%clk 0:00:14]} 0-1

[Event "*** Titled Tuesday Blitz"]
[Site "Chess.com"]
[Date "2020.05.19"]
[Round "8"]
[White "Norival"]
[Black "Savagelittlemole"]
[Result "1/2-1/2"]
[WhiteElo "2661"]
[BlackElo "2537"]
[TimeControl "180+1"]
[EndTime "13:36:36 PDT"]
[Termination "Game drawn by agreement"]

1. d4 {[%clk 0:03:00.9]} 1... Nf6 {[%clk 0:02:59.6]} 2. Nf3 {[%clk 0:03:00.2]}
2... g6 {[%clk 0:02:59.8]} 3. e3 {[%clk 0:02:58.9]} 3... Bg7 {[%clk 0:03:00.4]}
4. b4 {[%clk 0:02:58.4]} 4... O-O {[%clk 0:03:01.3]} 5. c4 {[%clk 0:02:58.1]}
5... d6 {[%clk 0:03:00.8]} 6. Bb2 {[%clk 0:02:56.9]} 6... Nbd7 {[%clk 0:03:01]}
7. Nbd2 {[%clk 0:02:56.3]} 7... Re8 {[%clk 0:03:01.4]} 8. Be2 {[%clk 0:02:55.4]}
8... e5 {[%clk 0:03:01.5]} 9. dxe5 {[%clk 0:02:55.4]} 9... Nxe5 {[%clk
0:03:00.2]} 10. O-O {[%clk 0:02:53.9]} 10... b6 {[%clk 0:02:50.1]} 11. Rc1
{[%clk 0:02:43.4]} 11... a5 {[%clk 0:02:47]} 12. a3 {[%clk 0:02:40.2]} 12...
axb4 {[%clk 0:02:46.7]} 13. axb4 {[%clk 0:02:41.1]} 13... Bb7 {[%clk 0:02:47]}
14. c5 {[%clk 0:02:34.9]} 14... bxc5 {[%clk 0:02:44.8]} 15. bxc5 {[%clk
0:02:35.8]} 15... Ra2 {[%clk 0:02:33.3]} 16. Bd4 {[%clk 0:02:18.8]} 16... Qa8
{[%clk 0:02:09.8]} 17. cxd6 {[%clk 0:01:49.3]} 17... cxd6 {[%clk 0:02:09.4]} 18.
Rc7 {[%clk 0:01:49.1]} 18... Nd5 {[%clk 0:01:55.2]} 19. Rc2 {[%clk 0:01:38.2]}
19... Nb4 {[%clk 0:01:42.9]} 20. Rxa2 {[%clk 0:01:32.1]} 20... Qxa2 {[%clk
0:01:43.8]} 21. Bb5 {[%clk 0:00:57.3]} 21... Rb8 {[%clk 0:01:27.2]} 22. Bxe5
{[%clk 0:00:50.6]} 22... dxe5 {[%clk 0:01:04.1]} 23. Bc4 {[%clk 0:00:50.3]}
23... Bxf3 {[%clk 0:01:04.1]} 24. gxf3 {[%clk 0:00:37.9]} 24... Qc2 {[%clk
0:00:58]} 25. Qxc2 {[%clk 0:00:37.3]} 25... Nxc2 {[%clk 0:00:58.9]} 26. Rc1
{[%clk 0:00:37.8]} 26... Na3 {[%clk 0:00:58.7]} 27. Bd5 {[%clk 0:00:35.6]} 27...
Kh8 {[%clk 0:00:40.7]} 28. Bxf7 {[%clk 0:00:34]} 28... Bf8 {[%clk 0:00:38]} 29.
Kg2 {[%clk 0:00:30.2]} 29... Bb4 {[%clk 0:00:37.9]} 30. Ne4 {[%clk 0:00:30.1]}
30... Nb5 {[%clk 0:00:32.9]} 31. Bc4 {[%clk 0:00:27]} 31... Nd6 {[%clk
0:00:29.4]} 32. Nxd6 {[%clk 0:00:22.1]} 32... Bxd6 {[%clk 0:00:30.3]} 33. Rd1
{[%clk 0:00:22.6]} 33... Be7 {[%clk 0:00:25.8]} 34. Rd7 {[%clk 0:00:22.2]} 34...
Bf6 {[%clk 0:00:26]} 35. Be6 {[%clk 0:00:19.9]} 35... Re8 {[%clk 0:00:24.4]} 36.
Bh3 {[%clk 0:00:18.4]} 36... Rb8 {[%clk 0:00:24.3]} 37. Ra7 {[%clk 0:00:17.9]}
37... h5 {[%clk 0:00:20.6]} 38. Be6 {[%clk 0:00:17.5]} 38... Rb6 {[%clk
0:00:18.9]} 39. Bd5 {[%clk 0:00:15.7]} 39... Rb2 {[%clk 0:00:18.2]} 40. h3
{[%clk 0:00:14.6]} 40... Bh4 {[%clk 0:00:18.3]} 41. Ra2 {[%clk 0:00:13.3]} 41...
Rxa2 {[%clk 0:00:18]} 42. Bxa2 {[%clk 0:00:14.2]} 42... Bf6 {[%clk 0:00:17.9]}
1/2-1/2

[Event "*** Titled Tuesday Blitz"]
[Site "Chess.com"]
[Date "2020.05.19"]
[Round "8"]
[White "A-Fier"]
[Black "MateSchmate"]
[Result "1-0"]
[WhiteElo "2738"]
[BlackElo "2546"]
[TimeControl "180+1"]
[EndTime "13:36:40 PDT"]
[Termination "A-Fier won by checkmate"]

1. e4 {[%clk 0:02:56.5]} 1... e6 {[%clk 0:03:00.2]} 2. d4 {[%clk 0:02:53.7]}
2... d5 {[%clk 0:03:00.5]} 3. Nd2 {[%clk 0:02:53.6]} 3... a6 {[%clk 0:03:00.1]}
4. Ngf3 {[%clk 0:02:53]} 4... Nf6 {[%clk 0:03:00.3]} 5. e5 {[%clk 0:02:53.1]}
5... Nfd7 {[%clk 0:03:00.7]} 6. Bd3 {[%clk 0:02:53.6]} 6... c5 {[%clk
0:03:01.2]} 7. c3 {[%clk 0:02:53.9]} 7... Nc6 {[%clk 0:03:01.7]} 8. O-O {[%clk
0:02:53.9]} 8... g5 {[%clk 0:03:02.3]} 9. dxc5 {[%clk 0:02:52.1]} 9... g4 {[%clk
0:03:02.6]} 10. Nd4 {[%clk 0:02:51.7]} 10... Ncxe5 {[%clk 0:03:02.7]} 11. N2b3
{[%clk 0:02:51.9]} 11... Nxd3 {[%clk 0:03:02.9]} 12. Qxd3 {[%clk 0:02:52.8]}
12... Nxc5 {[%clk 0:03:02.8]} 13. Nxc5 {[%clk 0:02:52.7]} 13... Bxc5 {[%clk
0:03:03.7]} 14. f4 {[%clk 0:02:50.8]} 14... O-O {[%clk 0:02:40.4]} 15. Bd2
{[%clk 0:02:45.8]} 15... b5 {[%clk 0:02:31.3]} 16. Rae1 {[%clk 0:02:45]} 16...
f5 {[%clk 0:02:19.5]} 17. Kh1 {[%clk 0:02:44.1]} 17... Bxd4 {[%clk 0:02:18.6]}
18. Qxd4 {[%clk 0:02:43.3]} 18... Qf6 {[%clk 0:02:15.4]} 19. Re5 {[%clk
0:02:40.4]} 19... Qf7 {[%clk 0:02:13.2]} 20. c4 {[%clk 0:02:38]} 20... dxc4
{[%clk 0:01:57]} 21. Bc3 {[%clk 0:02:37.4]} 21... Qf6 {[%clk 0:01:05.5]} 22. Qb6
{[%clk 0:02:30.3]} 22... Qd8 {[%clk 0:01:00.9]} 23. Qc6 {[%clk 0:02:22.2]} 23...
Bd7 {[%clk 0:00:56.1]} 24. Qd6 {[%clk 0:02:21.6]} 24... Rc8 {[%clk 0:00:54.7]}
25. Rd1 {[%clk 0:02:15.6]} 25... Rf7 {[%clk 0:00:31.3]} 26. Re3 {[%clk
0:02:01.4]} 26... h5 {[%clk 0:00:20.1]} 27. h3 {[%clk 0:01:50.7]} 27... Qf8
{[%clk 0:00:16.8]} 28. Qe5 {[%clk 0:01:44]} 28... Kh7 {[%clk 0:00:17]} 29. hxg4
{[%clk 0:01:43.7]} 29... Rc5 {[%clk 0:00:15.5]} 30. Rh3 {[%clk 0:01:01.2]} 30...
Rxe5 {[%clk 0:00:14.9]} 31. Rxh5+ {[%clk 0:01:01.1]} 31... Qh6 {[%clk
0:00:08.7]} 32. Rxh6+ {[%clk 0:00:54.6]} 32... Kxh6 {[%clk 0:00:09.6]} 33. g5+
{[%clk 0:00:55.5]} 33... Kg6 {[%clk 0:00:08.2]} 34. Bxe5 {[%clk 0:00:56.4]}
34... Bc6 {[%clk 0:00:06]} 35. Rd8 {[%clk 0:00:55.7]} 35... Rh7+ {[%clk
0:00:04.4]} 36. Kg1 {[%clk 0:00:55.4]} 36... Bd5 {[%clk 0:00:03.3]} 37. Rf8
{[%clk 0:00:55.3]} 37... Kh5 {[%clk 0:00:03.1]} 38. Kf2 {[%clk 0:00:50.4]} 38...
Kg4 {[%clk 0:00:03]} 39. g6 {[%clk 0:00:50.6]} 39... Rh2 {[%clk 0:00:03.1]} 40.
g7 {[%clk 0:00:51.1]} 40... Rxg2+ {[%clk 0:00:03.5]} 41. Kf1 {[%clk 0:00:51.5]}
41... Kf3 {[%clk 0:00:03.6]} 42. g8=Q {[%clk 0:00:51.6]} 42... Rf2+ {[%clk
0:00:04]} 43. Kg1 {[%clk 0:00:51.5]} 43... Re2 {[%clk 0:00:01.4]} 44. Qg5 {[%clk
0:00:45.9]} 44... Re1+ {[%clk 0:00:01.5]} 45. Kh2 {[%clk 0:00:46.2]} 45... Re2+
{[%clk 0:00:02.1]} 46. Kh3 {[%clk 0:00:46.7]} 46... Ke3 {[%clk 0:00:01.1]} 47.
Qg3+ {[%clk 0:00:46.5]} 47... Bf3 {[%clk 0:00:01.3]} 48. Kh4 {[%clk 0:00:45.9]}
48... Kd2 {[%clk 0:00:01.6]} 49. Qxf3 {[%clk 0:00:45.4]} 49... Re3 {[%clk
0:00:02.2]} 50. Qf2+ {[%clk 0:00:45.1]} 50... Re2 {[%clk 0:00:02.3]} 51. Rd8+
{[%clk 0:00:45.7]} 51... Kc1 {[%clk 0:00:02.7]} 52. Qxe2 {[%clk 0:00:45.7]}
52... c3 {[%clk 0:00:03.6]} 53. Rd1# {[%clk 0:00:45.4]} 1-0